fUST/lending_fUST_20241108
["ID","MTS","AMOUNT","RATE_DAILY","PERIOD"]
[341650465,1731061842927,-500.0,0.00022191,2]
[341650466,1731061842937,-500.0,0.00022191,2]
[341650467,1731061842946,-500.0,0.00022191,2]
[341650468,1731061842955,-500.0,0.00022191,2]
[341650469,1731061842964,-7413.72,0.00022191,2]
[341650470,1731061842973,-1244.76,0.00022191,2]
[341650471,1731061842982,-508.73846289,0.00022191,2]
[341650472,1731061842991,-500.0,0.00022191,2]
[341650473,1731061843000,-6682.39,0.00022191,2]
[341650474,1731061843009,-539.58,0.00022191,2]
[341650475,1731061843018,-500.0,0.00022191,2]
[341650476,1731061843027,-500.0,0.00022191,2]
[341650477,1731061843036,-657.0,0.00022191,2]
[341650478,1731061843045,-500.0,0.00022191,2]
[341650479,1731061843056,-1364.57,0.00022191,2]
[341650480,1731061843065,-500.0,0.00022191,2]
[341650481,1731061843075,-500.0,0.00022191,2]
[341650482,1731061843084,-500.0,0.00022191,2]
[341650483,1731061843093,-472.72740277,0.00022191,2]
[341650484,1731061843102,-500.0,0.00022191,2]
[341650485,1731061843111,-524.720566,0.00022191,2]
[341650486,1731061843120,-500.0,0.00022191,2]
[341650487,1731061843129,-500.0,0.00022191,2]
[341650488,1731061843138,-500.0,0.00022191,2]
[341650489,1731061843147,-200.56296131,0.00022191,2]
[341650490,1731061843157,-455.09859796,0.00022191,2]
[341650491,1731061843166,-500.0,0.00022191,2]
[341650492,1731061843175,-506.72608136,0.00022191,2]
[341650493,1731061843184,-652.02,0.00022191,2]
[341650494,1731061843192,-500.0,0.00022191,2]
[341650495,1731061843201,-500.0,0.00022191,2]
[341650497,1731061843210,-500.0,0.00022191,2]
[341650498,1731061843219,-500.0,0.00022191,2]
[341650499,1731061843316,-500.0,0.00022191,2]
[341650500,1731061843327,-248.15081605,0.00022191,2]
[341650501,1731061843337,-557.8377257,0.00022191,2]
[341650502,1731061843347,-500.0,0.00022191,2]
[341650503,1731061843357,-500.0,0.00022191,2]
[341650504,1731061843366,-500.0,0.00022191,2]
[341650505,1731061843375,-962.03,0.00022191,2]
[341650506,1731061843384,-500.0,0.00022191,2]
[341650507,1731061843394,-500.0,0.00022191,2]
[341650508,1731061843403,-500.0,0.00022191,2]
[341650509,1731061843412,-500.0,0.00022191,2]
[341650510,1731061843421,-3648.27,0.00022191,2]
[341650511,1731061843430,-331.920281,0.00022284,2]
[341650512,1731061843441,-151.531,0.000223,2]
[341650513,1731061843451,-524.07890578,0.00022465,2]
[341650514,1731061843459,-500.0,0.00022465,2]
[341650515,1731061843469,-500.0,0.00022465,2]
[341650516,1731061843478,-500.0,0.00022465,2]
[341650517,1731061843487,-500.0,0.00022465,2]
[341650518,1731061843496,-500.0,0.00022465,2]
[341650519,1731061843505,-500.0,0.00022465,2]
[341650520,1731061843514,-500.0,0.00022465,2]
[341650521,1731061843523,-500.0,0.00022465,2]
[341650522,1731061843532,-500.0,0.00022465,2]
[341650523,1731061843542,-500.0,0.00022465,2]
[341650524,1731061843551,-500.0,0.00022465,2]
[341650525,1731061843562,-500.0,0.00022465,2]
[341650526,1731061843571,-500.0,0.00022465,2]
[341650528,1731061843580,-500.0,0.00022465,2]
[341650529,1731061843590,-500.0,0.00022465,2]
[341650531,1731061843599,-500.0,0.00022465,2]
[341650532,1731061843608,-500.0,0.00022465,2]
[341650533,1731061843618,-500.0,0.00022465,2]
[341650534,1731061843628,-500.0,0.00022465,2]
[341650535,1731061843638,-500.0,0.00022465,2]
[341650536,1731061843647,-500.0,0.00022465,2]
[341650537,1731061843656,-365.21580839,0.00022465,2]
[341650538,1731061843665,-500.0,0.00022465,2]
[341650539,1731061843675,-500.0,0.00022465,2]
[341650540,1731061843684,-500.0,0.00022465,2]
[341650541,1731061843693,-500.0,0.00022465,2]
[341650542,1731061843703,-500.0,0.00022465,2]
[341650543,1731061843712,-500.0,0.00022465,2]
[341650544,1731061843721,-500.0,0.00022465,2]
[341650545,1731061843731,-500.0,0.00022465,2]
[341650546,1731061843740,-511.54163421,0.00022465,2]
[341650547,1731061843749,-500.0,0.00022465,2]
[341650548,1731061843759,-567.46258088,0.00022465,2]
[341650549,1731061843768,-500.0,0.00022465,2]
[341650550,1731061843778,-500.0,0.00022465,2]
[341650551,1731061843787,-500.0,0.00022465,2]
[341650552,1731061843796,-500.0,0.00022465,2]
[341650553,1731061843807,-500.0,0.00022465,2]
[341650554,1731061843816,-500.0,0.00022465,2]
[341650555,1731061843825,-500.0,0.00022465,2]
[341650556,1731061843835,-500.0,0.00022465,2]
[341650557,1731061843844,-562.45901529,0.00022465,2]
[341650558,1731061843854,-500.0,0.00022465,2]
[341650559,1731061843869,-500.0,0.00022465,2]
[341650560,1731061843879,-500.0,0.00022465,2]
[341650561,1731061843889,-827.66,0.00022465,2]
[341650562,1731061843898,-500.0,0.00022465,2]
[341650563,1731061843909,-500.0,0.00022465,2]
[341650564,1731061843918,-500.0,0.00022465,2]
[341650566,1731061843928,-500.0,0.00022465,2]
[341650567,1731061843939,-500.0,0.00022465,2]
[341650568,1731061843948,-514.70629,0.00022465,2]
[341650569,1731061843959,-500.0,0.00022465,2]
[341650571,1731061843968,-500.0,0.00022465,2]
[341650572,1731061843978,-500.0,0.00022465,2]
[341650573,1731061843987,-500.0,0.00022465,2]
[341650574,1731061843996,-844.68,0.00022465,2]
[341650575,1731061844006,-500.0,0.00022465,2]
[341650576,1731061844015,-500.0,0.00022465,2]
[341650577,1731061844024,-500.0,0.00022465,2]
[341650578,1731061844033,-200.49001882,0.00022465,2]
[341650579,1731061844042,-500.0,0.00022465,2]
[341650580,1731061844053,-500.0,0.00022465,2]
[341650581,1731061844062,-1825.57,0.00022465,2]
[341650582,1731061844072,-500.0,0.00022465,2]
[341650583,1731061844082,-500.0,0.00022465,2]
[341650584,1731061844091,-500.0,0.00022465,2]
[341650585,1731061844100,-7413.72,0.00022465,2]
[341650586,1731061844110,-1244.76,0.00022465,2]
[341650587,1731061844119,-500.0,0.00022465,2]
[341650588,1731061844129,-6682.39,0.00022465,2]
[341650589,1731061844138,-539.58,0.00022465,2]
[341650590,1731061844148,-500.0,0.00022465,2]
[341650591,1731061844158,-500.0,0.00022465,2]
[341650592,1731061844167,-657.0,0.00022465,2]
[341650593,1731061844178,-500.0,0.00022465,2]
[341650594,1731061844187,-1364.57,0.00022465,2]
[341650595,1731061844197,-500.0,0.00022465,2]
[341650596,1731061844206,-500.0,0.00022465,2]
[341650597,1731061844215,-500.0,0.00022465,2]
[341650598,1731061844225,-500.0,0.00022465,2]
[341650599,1731061844235,-500.0,0.00022465,2]
[341650600,1731061844244,-500.0,0.00022465,2]
[341650601,1731061844253,-500.0,0.00022465,2]
[341650602,1731061844262,-652.02,0.00022465,2]
[341650603,1731061844272,-500.0,0.00022465,2]
[341650604,1731061844281,-500.0,0.00022465,2]
[341650605,1731061844291,-500.0,0.00022465,2]
[341650606,1731061844301,-500.0,0.00022465,2]
[341650607,1731061844311,-500.0,0.00022465,2]
[341650608,1731061844320,-500.0,0.00022465,2]
[341650609,1731061844330,-210.26733421,0.00022465,2]
[341650610,1731061844339,-500.0,0.00022465,2]
[341650611,1731061844349,-962.03,0.00022465,2]
[341650612,1731061844359,-500.0,0.00022465,2]
[341650613,1731061844369,-500.0,0.00022465,2]
[341650614,1731061844379,-512.12578396,0.00022465,2]
[341650615,1731061844389,-500.0,0.00022465,2]
[341650616,1731061844399,-3648.27,0.00022465,2]
[341650617,1731061844408,-500.0,0.00022739,2]
[341650618,1731061844417,-500.0,0.00022739,2]
[341650619,1731061844427,-500.0,0.00022739,2]
[341650620,1731061844437,-500.0,0.00022739,2]
[341650621,1731061844446,-374.94904593,0.00022739,2]
[341650622,1731061844455,-500.0,0.00022739,2]
[341650623,1731061844464,-500.0,0.00022739,2]
[341650624,1731061844473,-500.0,0.00022739,2]
[341650625,1731061844483,-500.0,0.00022739,2]
[341650626,1731061844492,-500.0,0.00022739,2]
[341650627,1731061844501,-500.0,0.00022739,2]
[341650628,1731061844511,-500.0,0.00022739,2]
[341650629,1731061844520,-500.0,0.00022739,2]
[341650630,1731061844529,-500.0,0.00022739,2]
[341650631,1731061844539,-500.0,0.00022739,2]
[341650632,1731061844548,-464.27411409,0.00022739,2]
[341650633,1731061844559,-512.37220923,0.00022739,2]
[341650634,1731061844568,-500.0,0.00022739,2]
[341650635,1731061844577,-500.0,0.00022739,2]
[341650636,1731061844586,-249.86937082,0.00022739,2]
[341650637,1731061844595,-500.0,0.00022739,2]
[341650638,1731061844604,-550.42185286,0.00022739,2]
[341650639,1731061844615,-500.0,0.00022739,2]
[341650640,1731061844625,-500.0,0.00022739,2]
[341650641,1731061844635,-565.73,0.00022739,2]
[341650642,1731061844644,-500.0,0.00022739,2]
[341650643,1731061844654,-500.0,0.00022739,2]
[341650644,1731061844663,-520.66840443,0.00022739,2]
[341650645,1731061844672,-500.0,0.00022739,2]
[341650646,1731061844682,-508.95520663,0.00022739,2]
[341650647,1731061844692,-500.0,0.00022739,2]
[341650648,1731061844701,-500.0,0.00022739,2]
[341650649,1731061844711,-500.0,0.00022739,2]
[341650650,1731061844721,-827.66,0.00022739,2]
[341650651,1731061844730,-500.0,0.00022739,2]
[341650652,1731061844740,-500.0,0.00022739,2]
[341650653,1731061844749,-500.0,0.00022739,2]
[341650654,1731061844759,-500.0,0.00022739,2]
[341650655,1731061844768,-500.0,0.00022739,2]
[341650656,1731061844778,-500.0,0.00022739,2]
[341650657,1731061844787,-500.0,0.00022739,2]
[341650658,1731061844796,-500.0,0.00022739,2]
[341650659,1731061844809,-500.0,0.00022739,2]
[341650660,1731061844818,-844.68,0.00022739,2]
[341650661,1731061844827,-500.0,0.00022739,2]
[341650662,1731061844840,-500.0,0.00022739,2]
[341650663,1731061844850,-500.0,0.00022739,2]
[341650664,1731061844860,-500.0,0.00022739,2]
[341650665,1731061844871,-500.0,0.00022739,2]
[341650666,1731061844880,-1825.57,0.00022739,2]
[341650667,1731061844889,-500.0,0.00022739,2]
[341650668,1731061844898,-500.0,0.00022739,2]
[341650669,1731061844908,-500.0,0.00022739,2]
[341650670,1731061844918,-7413.72,0.00022739,2]
[341650671,1731061844927,-1244.76,0.00022739,2]
[341650672,1731061844937,-500.0,0.00022739,2]
[341650673,1731061844946,-6682.39,0.00022739,2]
[341650674,1731061844956,-539.58,0.00022739,2]
[341650675,1731061844965,-422.3860631,0.00022739,2]
[341650676,1731061844975,-500.0,0.00022739,2]
[341650677,1731061844984,-657.0,0.00022739,2]
[341650678,1731061844993,-1364.57,0.00022739,2]
[341650679,1731061845002,-500.0,0.00022739,2]
[341650680,1731061845011,-500.0,0.00022739,2]
[341650681,1731061845020,-500.0,0.00022739,2]
[341650682,1731061845030,-500.0,0.00022739,2]
[341650683,1731061845039,-500.0,0.00022739,2]
[341650684,1731061845048,-500.0,0.00022739,2]
[341650685,1731061845060,-500.0,0.00022739,2]
[341650686,1731061845069,-652.02,0.00022739,2]
[341650687,1731061845078,-500.0,0.00022739,2]
[341650688,1731061845088,-500.0,0.00022739,2]
[341650689,1731061845097,-500.0,0.00022739,2]
[341650690,1731061845107,-500.0,0.00022739,2]
[341650691,1731061845116,-500.0,0.00022739,2]
[341650692,1731061845125,-542.45032214,0.00022739,2]
[341650693,1731061845134,-962.03,0.00022739,2]
[341650694,1731061845143,-500.0,0.00022739,2]
[341650695,1731061845153,-500.0,0.00022739,2]
[341650696,1731061845161,-3648.27,0.00022739,2]
[341650697,1731061845171,-6055.09233097,0.00022849,2]
[341650698,1731061845180,-500.0,0.00023013,2]
[341650699,1731061845189,-450.02108329,0.00023013,2]
[341650700,1731061845198,-500.0,0.00023013,2]
[341650701,1731061845207,-500.0,0.00023013,2]
[341650702,1731061845216,-500.0,0.00023013,2]
[341650703,1731061845226,-344.17252419,0.00023013,2]
[341650704,1731061845236,-586.99056031,0.00023013,2]
[341650705,1731061845245,-500.0,0.00023013,2]
[341650706,1731061845255,-205.0146299,0.00023013,2]
[341650707,1731061845264,-500.0,0.00023013,2]
[341650708,1731061845273,-500.0,0.00023013,2]
[341650709,1731061845281,-185.62,0.00023013,2]
[341650710,1731061845291,-500.0,0.00023013,2]
[341650711,1731061845299,-500.0,0.00023013,2]
[341650712,1731061845310,-271.47198924,0.00023013,2]
[341650713,1731061845319,-500.0,0.00023013,2]
[341650714,1731061845328,-223.0760377,0.00023013,2]
[341650715,1731061845337,-500.0,0.00023013,2]
[341650716,1731061845347,-827.66,0.00023013,2]
[341650717,1731061845356,-500.0,0.00023013,2]
[341650718,1731061845366,-500.0,0.00023013,2]
[341650719,1731061845375,-500.0,0.00023013,2]
[341650720,1731061845384,-500.0,0.00023013,2]
[341650721,1731061845394,-500.0,0.00023013,2]
[341650722,1731061845403,-500.0,0.00023013,2]
[341650723,1731061845413,-500.0,0.00023013,2]
[341650724,1731061845422,-500.0,0.00023013,2]
[341650725,1731061845431,-500.0,0.00023013,2]
[341650726,1731061845441,-844.68,0.00023013,2]
[341650727,1731061845451,-500.0,0.00023013,2]
[341650728,1731061845460,-524.91520702,0.00023013,2]
[341650729,1731061845470,-500.0,0.00023013,2]
[341650730,1731061845479,-500.0,0.00023013,2]
[341650731,1731061845488,-500.0,0.00023013,2]
[341650732,1731061845498,-1825.57,0.00023013,2]
[341650733,1731061845507,-217.27507732,0.00023013,2]
[341650734,1731061845517,-440.59945818,0.00023013,2]
[341650735,1731061845526,-7413.72,0.00023013,2]
[341650736,1731061845535,-1244.76,0.00023013,2]
[341650737,1731061845545,-500.0,0.00023013,2]
[341650738,1731061845554,-6682.39,0.00023013,2]
[341650739,1731061845564,-539.58,0.00023013,2]
[341650740,1731061845575,-500.0,0.00023013,2]
[341650741,1731061845585,-657.0,0.00023013,2]
[341650742,1731061845595,-272.00221207,0.00023013,2]
[341650743,1731061845761,-1092.56778793,0.00023013,2]
[341650744,1731061845771,-500.0,0.00023013,2]
[341650745,1731061845781,-500.0,0.00023013,2]
[341650746,1731061845792,-500.0,0.00023013,2]
[341650747,1731061845802,-500.0,0.00023013,2]
[341650748,1731061845812,-500.0,0.00023013,2]
[341650749,1731061845823,-334.15374298,0.00023013,2]
[341650751,1731061845915,-648.62047108,0.00022191,2]
[341650753,1731061845924,-165.84625702,0.00023013,2]
[341650755,1731061845935,-652.02,0.00023013,2]
[341650756,1731061845946,-500.0,0.00023013,2]
[341650757,1731061845955,-201.26591484,0.00023013,2]
[341650758,1731061845970,-298.73408516,0.00023013,2]
[341650759,1731061845979,-286.69743627,0.00023013,2]
[341650760,1731061845992,-213.30256373,0.00023013,2]
[341650762,1731061846002,-268.54531124,0.00023013,2]
[341650763,1731061846014,-231.45468876,0.00023013,2]
[341650764,1731061846024,-151.0,0.00023013,7]
[341650765,1731061846033,-500.0,0.00023013,2]
[341650766,1731061846044,-151.0,0.00023013,7]
[341650767,1731061846054,-962.03,0.00023013,2]
[341650768,1731061846064,-859.656061,0.00023013,7]
[341650769,1731061846073,-859.656061,0.00023013,7]
[341650770,1731061846083,-151.0,0.00023013,7]
[341650771,1731061846092,-660.87527008,0.00023013,2]
[341650774,1731061846527,-2987.39472992,0.00023013,2]
[341650775,1731061846538,-6055.09233097,0.00023042,2]
[341650776,1731061846548,-1619.57725586,0.0002327,2]
[341650777,1731061846560,-151.0,0.00023287,7]
[341650778,1731061846570,-500.0,0.00023287,2]
[341650779,1731061846580,-500.0,0.00023287,2]
[341650780,1731061846590,-500.0,0.00023287,2]
[341650781,1731061846599,-500.0,0.00023287,2]
[341650782,1731061846609,-508.63656299,0.00023287,2]
[341650783,1731061846619,-500.0,0.00023287,2]
[341650784,1731061846629,-500.0,0.00023287,2]
[341650785,1731061846638,-500.0,0.00023287,2]
[341650786,1731061846647,-827.66,0.00023287,2]
[341650787,1731061846656,-500.0,0.00023287,2]
[341650788,1731061846666,-529.56547606,0.00023287,2]
[341650789,1731061846675,-151.0,0.00023287,7]
[341650790,1731061846685,-500.0,0.00023287,2]
[341650791,1731061846695,-500.0,0.00023287,2]
[341650792,1731061846704,-151.0,0.00023287,7]
[341650793,1731061846714,-500.0,0.00023287,2]
[341650794,1731061846723,-500.0,0.00023287,2]
[341650795,1731061846732,-844.68,0.00023287,2]
[341650796,1731061846741,-151.0,0.00023287,7]
[341650797,1731061846750,-151.0,0.00023287,7]
[341650798,1731061846759,-500.0,0.00023287,2]
[341650799,1731061846768,-500.0,0.00023287,2]
[341650800,1731061846778,-517.41543441,0.00023287,2]
[341650801,1731061846787,-500.0,0.00023287,2]
[341650802,1731061846795,-1825.57,0.00023287,2]
[341650803,1731061846805,-7413.72,0.00023287,2]
[341650804,1731061846814,-1244.76,0.00023287,2]
[341650805,1731061846823,-500.0,0.00023287,2]
[341650806,1731061846832,-6682.39,0.00023287,2]
[341650807,1731061846842,-151.0,0.00023287,7]
[341650808,1731061846851,-539.58,0.00023287,2]
[341650809,1731061846865,-162.6279,0.00023287,7]
[341650810,1731061846877,-967.398749,0.00023287,7]
[341650811,1731061846886,-967.398749,0.00023287,7]
[341650812,1731061846896,-505.723471,0.00023287,7]
[341650813,1731061846906,-505.723471,0.00023287,7]
[341650814,1731061846916,-500.0,0.00023287,2]
[341650815,1731061846926,-657.0,0.00023287,2]
[341650816,1731061846936,-1364.57,0.00023287,2]
[341650817,1731061846945,-500.0,0.00023287,2]
[341650818,1731061846954,-274.341154,0.00023287,7]
[341650820,1731061846963,-500.0,0.00023287,2]
[341650821,1731061846972,-274.341154,0.00023287,7]
[341650822,1731061846981,-500.0,0.00023287,2]
[341650823,1731061846991,-500.0,0.00023287,2]
[341650824,1731061847000,-500.0,0.00023287,2]
[341650825,1731061847009,-500.0,0.00023287,2]
[341650826,1731061847018,-652.02,0.00023287,2]
[341650827,1731061847027,-500.0,0.00023287,2]
[341650828,1731061847036,-339.657569,0.00023287,7]
[341650829,1731061847045,-339.657569,0.00023287,7]
[341650830,1731061847055,-500.0,0.00023287,2]
[341650831,1731061847064,-500.0,0.00023287,2]
[341650832,1731061847073,-500.0,0.00023287,2]
[341650833,1731061847082,-592.75544,0.00023287,7]
[341650834,1731061847091,-500.0,0.00023287,2]
[341650835,1731061847101,-592.75544,0.00023287,7]
[341650836,1731061847110,-153.537702,0.00023287,7]
[341650837,1731061847119,-962.03,0.00023287,2]
[341650838,1731061847128,-934.639051,0.00023287,7]
[341650839,1731061847138,-934.639051,0.00023287,7]
[341650840,1731061847147,-3648.27,0.00023287,2]
[341650841,1731061847156,-151.0,0.00023287,7]
[341650842,1731061847166,-500.0,0.00023288,2]
[341650843,1731061847175,-202.18916723,0.00023288,2]
[341650844,1731061847185,-500.0,0.00023288,2]
[341650845,1731061847194,-500.0,0.00023288,2]
[341650846,1731061847203,-500.0,0.00023288,2]
[341650847,1731061847212,-500.0,0.00023288,2]
[341650848,1731061847224,-500.0,0.00023288,2]
[341650849,1731061847233,-500.0,0.00023288,2]
[341650850,1731061847242,-500.0,0.00023288,2]
[341650851,1731061847251,-505.14189771,0.00023367,2]
[341650852,1731061847260,-500.0,0.00023367,2]
[341650853,1731061847270,-6055.09233097,0.00023414,2]
[341650854,1731061847279,-151.0,0.00023436,7]
[341650855,1731061847289,-151.0,0.00023436,7]
[341650856,1731061847298,-151.0,0.00023436,7]
[341650857,1731061847308,-383.530475,0.00023436,7]
[341650858,1731061847317,-383.530475,0.00023436,7]
[341650859,1731061847326,-157.063331,0.00023542,7]
[341650860,1731061847335,-155.866321,0.00023542,7]
[341650861,1731061847347,-198.51764,0.00023542,7]
[341650862,1731061847357,-198.51764,0.00023542,7]
[341650863,1731061847367,-938.055874,0.00023542,7]
[341650864,1731061847377,-938.055874,0.00023542,7]
[341650865,1731061847387,-1135.58373726,0.00023542,2]
[341650866,1731061847397,-1070.38726527,0.00023542,2]
[341650867,1731061847406,-1000.0,0.00023542,2]
[341650868,1731061847415,-1000.0,0.00023542,2]
[341650869,1731061847425,-151.0,0.00023561,7]
[341650870,1731061847436,-151.0,0.00023561,7]
[341650871,1731061847446,-500.0,0.00023561,2]
[341650872,1731061847455,-500.0,0.00023561,2]
[341650873,1731061847464,-500.0,0.00023561,2]
[341650874,1731061847473,-500.0,0.00023561,2]
[341650875,1731061847482,-154.492701,0.00023561,7]
[341650876,1731061847491,-500.0,0.00023561,2]
[341650877,1731061847500,-180.248497,0.00023561,7]
[341650878,1731061847509,-180.248497,0.00023561,7]
[341650879,1731061847519,-151.0,0.00023561,7]
[341650880,1731061847528,-151.0,0.00023561,7]
[341650881,1731061847537,-351.120515,0.00023561,7]
[341650882,1731061847546,-351.120515,0.00023561,7]
[341650883,1731061847555,-151.0,0.00023561,7]
[341650884,1731061847564,-827.66,0.00023561,2]
[341650885,1731061847574,-500.0,0.00023561,2]
[341650886,1731061847583,-500.0,0.00023561,2]
[341650887,1731061847592,-500.0,0.00023561,2]
[341650888,1731061847601,-844.68,0.00023561,2]
[341650889,1731061847610,-500.0,0.00023561,2]
[341650890,1731061847619,-1825.57,0.00023561,2]
[341650891,1731061847628,-7413.72,0.00023561,2]
[341650892,1731061847637,-1244.76,0.00023561,2]
[341650893,1731061847647,-500.0,0.00023561,2]
[341650894,1731061847657,-6682.39,0.00023561,2]
[341650895,1731061847666,-539.58,0.00023561,2]
[341650896,1731061847675,-402.08,0.00023561,2]
[341650897,1731061847684,-657.0,0.00023561,2]
[341650898,1731061847693,-1364.57,0.00023561,2]
[341650899,1731061847702,-500.0,0.00023561,2]
[341650900,1731061847711,-500.0,0.00023561,2]
[341650901,1731061847720,-387.98475007,0.00023561,2]
[341650902,1731061847729,-500.0,0.00023561,2]
[341650903,1731061847738,-500.0,0.00023561,2]
[341650904,1731061847748,-500.0,0.00023561,2]
[341650905,1731061847757,-652.02,0.00023561,2]
[341650906,1731061847767,-500.0,0.00023561,2]
[341650907,1731061847776,-500.0,0.00023561,2]
[341650908,1731061847785,-500.0,0.00023561,2]
[341650909,1731061847794,-500.0,0.00023561,2]
[341650910,1731061847804,-500.0,0.00023561,2]
[341650911,1731061847814,-151.0,0.00023561,7]
[341650912,1731061847823,-859.656061,0.00023561,7]
[341650913,1731061847832,-962.03,0.00023561,2]
[341650914,1731061847841,-859.656061,0.00023561,7]
[341650915,1731061847850,-151.0,0.00023561,7]
[341650916,1731061847861,-3648.27,0.00023561,2]
[341650917,1731061847872,-1132.0,0.00023769,2]
[341650918,1731061847881,-529.0,0.00023769,2]
[341650919,1731061847890,-2392.0,0.00023769,2]
[341650920,1731061847899,-420.0,0.00023816,2]
[341650921,1731061847909,-150.784,0.0002383,2]
[341650922,1731061847918,-150.0,0.0002383,2]
[341650923,1731061847927,-408.22426828,0.00023835,2]
[341650924,1731061847937,-500.0,0.00023835,2]
[341650925,1731061847946,-500.0,0.00023835,2]
[341650926,1731061847957,-500.0,0.00023835,2]
[341650927,1731061847967,-500.0,0.00023835,2]
[341650928,1731061847978,-827.66,0.00023835,2]
[341650929,1731061847987,-500.0,0.00023835,2]
[341650930,1731061847995,-500.0,0.00023835,2]
[341650931,1731061848005,-844.68,0.00023835,2]
[341650932,1731061848014,-500.0,0.00023835,2]
[341650933,1731061848023,-1825.57,0.00023835,2]
[341650934,1731061848033,-7413.72,0.00023835,2]
[341650935,1731061848043,-1244.76,0.00023835,2]
[341650936,1731061848052,-280.15501615,0.00023835,2]
[341650937,1731061848062,-6682.39,0.00023835,2]
[341650938,1731061848071,-539.58,0.00023835,2]
[341650939,1731061848081,-657.0,0.00023835,2]
[341650940,1731061848090,-1364.57,0.00023835,2]
[341650941,1731061848100,-500.0,0.00023835,2]
[341650942,1731061848110,-500.0,0.00023835,2]
[341650943,1731061848119,-500.0,0.00023835,2]
[341650944,1731061848129,-500.0,0.00023835,2]
[341650945,1731061848139,-652.02,0.00023835,2]
[341650946,1731061848148,-500.0,0.00023835,2]
[341650947,1731061848157,-500.0,0.00023835,2]
[341650948,1731061848253,-500.0,0.00023835,2]
[341650949,1731061848264,-500.0,0.00023835,2]
[341650950,1731061848273,-217.23334343,0.00023835,2]
[341650951,1731061848283,-962.03,0.00023835,2]
[341650952,1731061848292,-3648.27,0.00023835,2]
[341650953,1731061848301,-151.0,0.00023835,7]
[341650954,1731061848312,-420.0,0.00024107,2]
[341650955,1731061848321,-151.0,0.00024109,7]
[341650956,1731061848330,-153.166935,0.00024109,7]
[341650957,1731061848340,-500.0,0.00024109,2]
[341650958,1731061848349,-500.0,0.00024109,2]
[341650959,1731061848359,-500.0,0.00024109,2]
[341650960,1731061848368,-360.183581,0.00024109,7]
[341650961,1731061848377,-360.183581,0.00024109,7]
[341650962,1731061848386,-827.66,0.00024109,2]
[341650963,1731061848396,-151.0,0.00024109,7]
[341650964,1731061848405,-500.0,0.00024109,2]
[341650965,1731061848415,-152.647872,0.00024109,7]
[341650966,1731061848424,-500.0,0.00024109,2]
[341650967,1731061848434,-844.68,0.00024109,2]
[341650968,1731061848444,-181.226626,0.00024109,7]
[341650969,1731061848454,-151.0,0.00024109,7]
[341650970,1731061848464,-500.0,0.00024109,2]
[341650971,1731061848473,-1825.57,0.00024109,2]
[341650972,1731061848482,-7413.72,0.00024109,2]
[341650973,1731061848491,-1244.76,0.00024109,2]
[341650974,1731061848501,-6682.39,0.00024109,2]
[341650975,1731061848510,-151.0,0.00024109,7]
[341650976,1731061848519,-539.58,0.00024109,2]